bitfinex-derivatives/quotes_ETHF0:USTF0_20260310
["timestamp","ask_amount","ask_price","bid_price","bid_amount"]
[1773149702874,4.49147524,2038.5,2036.9,4.59588352]
[1773149703071,4.49147524,2038.4,2036.9,4.59588352]
[1773149703477,4.49147524,2038.2,2036.9,4.59588352]
[1773149703683,4.45985805,2038.0,2036.7,0.00465594]
[1773149703880,4.45985805,2037.8,2036.7,4.40938668]
[1773149704180,4.46577295,2037.8,2036.7,4.40938668]
[1773149704575,4.46577295,2037.8,2036.7,0.00465594]
[1773149704775,4.45985805,2037.6,2036.7,0.00465594]
[1773149705478,0.0059149,2037.8,2035.0,6.0437]
[1773149705479,4.45985805,2037.0,2035.9,4.40473074]
[1773149705681,4.45985805,2036.4,2035.4,5.23482973]
[1773149705872,4.45985805,2036.4,2035.4,3.23482973]
[1773149706079,4.45985805,2036.7,2035.4,3.23482973]
[1773149706279,4.45985805,2037.3,2035.7,4.40473074]
[1773149706575,4.45985805,2037.7,2036.1,4.40473074]
[1773149706876,4.45985805,2037.7,2036.2,4.40473074]
[1773149707277,4.45985805,2037.7,2036.2,4.00089074]
[1773149707472,4.45985805,2037.7,2036.3,4.40473074]
[1773149707679,14.6126,2038.9,2036.0,13.1539]
[1773149707680,4.45985805,2038.3,2037.3,4.40473074]
[1773149707871,4.45985805,2039.3,2037.5,4.40473074]
[1773149708077,4.45985805,2039.3,2037.7,4.40473074]
[1773149708276,4.45985805,2039.9,2038.3,4.40473074]
[1773149708675,4.45985805,2039.9,2038.4,4.40473074]
[1773149709180,4.46479575,2039.9,2038.4,4.41067089]
[1773149709478,4.46479575,2039.9,2038.6,4.40473074]
[1773149709974,0.0049377,2039.9,2038.6,8.23058242]
[1773149710177,0.0049377,2039.9,2038.4,0.00594015]
[1773149710178,4.45985805,2039.8,2038.7,4.40473074]
[1773149710376,4.45985805,2039.5,2038.4,4.41067089]
[1773149710685,4.45985805,2039.5,2038.4,0.00594015]
[1773149710686,4.45985805,2039.3,2038.4,0.00594015]
[1773149710981,4.45985805,2039.3,2038.4,4.41067089]
[1773149711187,4.45985805,2039.3,2038.4,0.00594015]
[1773149712283,4.45985805,2039.1,2038.4,0.00594015]
[1773149712480,0.24516,2039.4,2038.4,0.00594015]
[1773149712481,4.70501805,2039.4,2038.4,4.41067089]
[1773149712782,4.45985805,2038.7,2037.2,4.40473074]
[1773149712978,4.45985805,2038.5,2037.2,4.40473074]
[1773149713375,4.45985805,2038.3,2037.2,4.40473074]
[1773149713883,0.0041696,2038.3,2037.2,4.40837203]
[1773149714078,4.46402765,2038.3,2037.2,4.40837203]
[1773149714579,4.46402765,2038.3,2037.2,0.00364129]
[1773149715279,4.46402765,2038.3,2037.2,4.40837203]
[1773149716785,4.45985805,2037.9,2037.2,0.00364129]
[1773149717083,4.45985805,2038.2,2037.2,4.40837203]
[1773149717875,0.0041696,2038.3,2037.2,4.40837203]
[1773149718086,4.45985805,2038.8,2037.4,4.40473074]
[1773149718283,4.45985805,2038.9,2037.4,4.40473074]
[1773149719086,4.46441264,2038.9,2037.5,4.65011074]
[1773149719384,0.00455459,2038.9,2037.6,4.40473074]
[1773149719680,4.45985805,2038.3,2037.2,0.00364129]
[1773149719880,4.45985805,2038.0,2037.2,0.00364129]
[1773149720789,4.70521805,2037.7,2036.4,4.40473074]
[1773149720986,6.03563,2037.8,2035.7,4.40473074]
[1773149720987,4.70523805,2037.5,2035.7,4.40473074]
[1773149721188,4.45985805,2037.3,2035.7,4.40473074]
[1773149721481,4.45985805,2037.1,2035.8,4.40473074]
[1773149721682,4.45985805,2036.9,2035.8,4.40473074]
[1773149721882,0.00534571,2036.9,2035.8,4.41015065]
[1773149722490,6.392,2037.4,2035.8,4.41015065]
[1773149722491,4.45985805,2037.3,2035.8,4.41015065]
[1773149722984,4.45985805,2037.7,2036.0,4.40473074]
[1773149723185,4.45985805,2037.4,2036.0,4.40473074]
[1773149723391,4.45985805,2037.2,2036.0,4.40473074]
[1773149724090,4.45985805,2037.0,2035.8,0.00541991]
[1773149724283,4.45985805,2037.0,2035.8,4.41015065]
[1773149725885,4.45985805,2037.3,2035.8,4.41015065]
[1773149726282,0.00590483,2037.4,2035.8,10.45140065]
[1773149726487,0.00590483,2037.4,2035.9,4.40473074]
[1773149726691,11.88438605,2038.3,2036.5,4.40473074]
[1773149726692,4.45985805,2037.9,2036.5,4.40473074]
[1773149726887,10.49372805,2038.4,2036.7,4.40473074]
[1773149727191,4.45985805,2038.2,2036.7,4.40473074]
[1773149727584,4.45985805,2037.3,2035.9,4.40473074]
[1773149727888,4.46420981,2037.3,2035.9,4.40473074]
[1773149728788,5.85001605,2038.1,2035.9,4.40473074]
[1773149728789,4.45985805,2037.7,2036.2,4.40473074]
[1773149728984,4.45985805,2037.7,2036.4,4.40473074]
[1773149729490,4.45985805,2037.5,2035.9,4.40473074]
[1773149729890,4.46496893,2037.5,2035.9,4.40473074]
[1773149730290,4.45985805,2037.2,2035.9,4.40473074]
[1773149731285,0.24541,2037.3,2035.8,0.00541991]
[1773149731286,4.45985805,2037.0,2035.8,0.00541991]
[1773149731486,4.45985805,2036.8,2035.8,0.00541991]
[1773149731887,4.45985805,2036.8,2035.8,4.41015065]
[1773149732289,4.45985805,2036.8,2035.8,0.00541991]
[1773149732496,4.45985805,2036.8,2035.8,4.41015065]
[1773149732895,4.45985805,2036.6,2035.8,0.00541991]
[1773149733696,4.45985805,2036.6,2035.8,4.22221381]
[1773149733897,4.35884709,2037.2,2035.8,4.22221381]
[1773149734092,4.35884709,2037.0,2035.8,0.00541991]
[1773149734390,4.35884709,2036.6,2035.8,0.00541991]
[1773149736492,4.35884709,2037.0,2035.8,4.22221381]
[1773149736995,4.35884709,2036.8,2035.8,0.00541991]
[1773149737196,4.35884709,2036.6,2035.8,0.00541991]
[1773149737995,4.35884709,2037.1,2035.8,4.22221381]
[1773149738295,0.00511088,2037.5,2036.1,0.24555]
[1773149738495,0.00511088,2037.5,2036.3,4.2167939]
[1773149738896,4.35884709,2037.1,2035.8,4.22221381]
[1773149739095,4.35884709,2036.5,2035.8,0.00541991]
[1773149739295,4.35884709,2036.8,2035.8,4.22221381]
[1773149739590,4.60432709,2036.7,2035.8,4.22221381]
[1773149739897,4.35884709,2036.4,2035.8,0.00541991]
[1773149740898,4.35884709,2036.2,2035.8,9.91e-06]
[1773149741102,4.35884709,2036.0,2034.9,4.2167939]
[1773149741497,6.03948,2036.5,2034.7,0.01233782]
[1773149741498,4.35884709,2035.8,2034.7,0.01233782]
[1773149741702,4.35884709,2035.8,2034.7,4.22913172]
[1773149742103,4.36473072,2035.8,2034.7,4.23431103]
[1773149742401,4.36473072,2035.8,2034.9,4.2167939]
[1773149742402,0.00588363,2035.8,2034.9,4.2167939]
[1773149742602,4.36473072,2035.8,2034.7,0.01751713]
[1773149743098,0.2456,2035.7,2034.7,0.01751713]
[1773149743294,4.35884709,2035.6,2034.7,4.23431103]
[1773149743694,0.00588363,2035.8,2034.7,4.23431103]
[1773149744094,4.35884709,2036.2,2035.1,4.2167939]
[1773149744392,4.35884709,2036.9,2035.3,4.2167939]
[1773149744992,4.35884709,2036.7,2035.5,4.2167939]
[1773149745198,4.36290602,2036.7,2035.5,4.2167939]
[1773149745805,4.35884709,2036.3,2035.2,4.2167939]
[1773149746798,4.39752221,2036.6,2035.2,4.2167939]
[1773149747198,4.39752221,2036.6,2035.3,4.30030197]
[1773149748402,0.00405893,2036.7,2035.5,4.30030197]
[1773149748709,4.40158114,2036.7,2035.7,4.30030197]
[1773149748899,4.39752221,2036.5,2035.3,4.30030197]
[1773149749098,4.39752221,2036.3,2035.0,4.30030197]
[1773149749595,4.39752221,2036.3,2034.6,0.24573]
[1773149749596,4.39752221,2036.1,2034.6,0.24573]
[1773149749904,4.39752221,2036.1,2034.7,4.3178191]
[1773149750099,4.39752221,2036.1,2034.9,4.30030197]
[1773149751708,4.39752221,2036.1,2035.1,4.30030197]
[1773149751909,4.39752221,2036.1,2034.7,0.01751713]
[1773149752109,4.39752221,2035.7,2034.2,4.31103426]
[1773149752303,4.39752221,2035.6,2034.2,4.31103426]
[1773149753201,4.39752221,2035.6,2034.4,4.30030197]
[1773149753505,4.39752221,2036.3,2035.0,4.30030197]
[1773149754106,4.39752221,2036.3,2035.2,4.30030197]
[1773149755404,0.24556,2036.0,2034.7,4.30030197]
[1773149755604,4.39752221,2035.9,2034.7,4.30030197]
[1773149756306,4.39752221,2035.9,2034.9,4.30030197]
[1773149756506,4.39752221,2036.2,2034.9,4.30030197]
[1773149757201,4.39752221,2036.2,2035.1,4.30030197]
[1773149758210,4.39752221,2036.0,2034.6,4.30030197]
[1773149758410,4.39752221,2036.0,2034.8,4.30030197]
[1773149758808,0.2456,2035.7,2034.3,4.30030197]
[1773149759005,4.39752221,2035.6,2034.3,4.30030197]
[1773149759807,4.39752221,2035.6,2034.4,4.54606197]
[1773149760110,4.39752221,2036.1,2034.4,4.54606197]
[1773149760310,4.39752221,2035.9,2034.9,4.30030197]
[1773149760712,4.39752221,2036.6,2035.5,4.30030197]
[1773149761011,4.39752221,2036.6,2035.2,4.30030197]
[1773149761212,4.39752221,2036.4,2035.0,4.30030197]
[1773149761410,4.39752221,2036.0,2035.0,4.30030197]
[1773149761809,4.39752221,2036.6,2035.4,4.30030197]
[1773149762203,0.24954893,2036.7,2035.1,4.30030197]
[1773149762204,4.39752221,2036.4,2035.1,4.30030197]
[1773149762402,4.39752221,2036.2,2035.1,4.30030197]
[1773149762604,4.39752221,2036.2,2034.8,4.54600197]
[1773149762808,4.39752221,2036.0,2034.8,4.30030197]
[1773149763010,4.39752221,2036.0,2034.8,4.54600197]
[1773149763213,10.66616503,2036.6,2035.3,4.30030197]
[1773149763214,4.39752221,2036.6,2035.3,4.30030197]
[1773149763410,4.39752221,2036.4,2035.3,4.30030197]
[1773149763614,4.11905924,2036.7,2035.7,4.07451013]
[1773149763922,4.11905924,2036.7,2035.7,0.00580601]
[1773149764215,4.11905924,2036.7,2035.7,4.08031614]
[1773149764405,0.24549,2036.6,2035.7,0.00580601]
[1773149764609,10.38562668,2036.5,2035.7,0.00580601]
[1773149764806,4.11500031,2036.5,2035.7,0.00580601]
[1773149765012,0.00405893,2036.7,2035.8,4.32010013]
[1773149765309,4.11905924,2036.7,2035.8,4.32010013]
[1773149765514,0.00405893,2036.7,2035.8,4.32010013]
[1773149765715,0.00405893,2036.7,2036.0,0.24556]
[1773149766016,4.11500031,2037.7,2036.2,4.32005013]
[1773149766214,4.11500031,2037.5,2036.2,4.32005013]
[1773149766815,4.11500031,2037.5,2036.3,4.07451013]
[1773149767010,4.12089468,2037.5,2036.5,4.07451013]
[1773149767217,4.12089468,2037.5,2036.6,0.24549]
[1773149767423,4.11500031,2038.4,2037.0,4.31995013]
[1773149767910,4.11500031,2038.4,2036.5,6.03942]
[1773149767911,4.36027031,2038.4,2036.4,0.24551]
[1773149768120,4.36033031,2037.9,2036.6,4.07451013]
[1773149768311,4.11500031,2037.6,2036.2,11.20651013]
[1773149768517,4.11500031,2037.6,2036.2,4.32005013]
[1773149768714,4.11940442,2037.9,2036.7,4.07451013]
[1773149769310,4.11500031,2037.7,2036.1,4.07451013]
[1773149769516,4.11500031,2037.7,2036.3,4.07451013]
[1773149770018,4.11500031,2037.7,2036.4,4.07451013]
[1773149770512,4.11500031,2037.7,2036.5,4.07451013]
[1773149770911,4.11500031,2037.7,2036.1,6.04059]
[1773149770912,4.11940442,2037.9,2036.7,4.07451013]
[1773149771108,4.11940442,2037.9,2036.8,4.07451013]
[1773149771109,0.00440411,2037.9,2036.8,4.07451013]
[1773149771315,4.11940442,2037.9,2036.8,4.07451013]
[1773149771510,4.11940442,2037.9,2037.0,4.07451013]
[1773149771511,0.00440411,2037.9,2037.0,4.07451013]
[1773149772017,4.11940442,2037.9,2037.0,11.21551013]
[1773149772215,4.11940442,2037.9,2036.7,11.21551013]
[1773149772519,4.11940442,2037.9,2036.8,4.07451013]
[1773149773522,4.11940442,2037.9,2036.9,4.07451013]
[1773149774118,0.00440411,2037.9,2037.0,4.07451013]
[1773149774619,4.11500031,2037.7,2036.4,4.07451013]
[1773149774815,6.03566,2037.8,2035.8,4.07451013]
[1773149774816,4.11500031,2037.5,2035.8,4.07451013]
[1773149775018,4.11500031,2037.3,2035.8,4.07451013]
[1773149775421,4.11500031,2037.3,2036.0,4.07451013]
[1773149775616,4.11500031,2037.1,2036.0,4.07451013]
[1773149776621,4.11500031,2037.1,2035.7,4.08031614]
[1773149777021,6.395,2037.4,2035.7,4.08031614]
[1773149777022,4.11500031,2036.9,2035.7,4.08031614]
[1773149777224,4.11500031,2036.7,2035.7,4.08031614]
[1773149778326,4.11500031,2037.0,2035.7,4.08031614]
[1773149778525,4.11500031,2037.0,2035.7,4.32590614]
[1773149778825,4.11500031,2037.3,2036.2,4.07451013]
[1773149779025,4.11500031,2037.3,2036.1,4.07451013]
[1773149779522,4.11500031,2037.3,2036.1,4.32005013]
[1773149779726,4.11500031,2037.6,2036.3,4.07451013]
[1773149780627,4.11500031,2037.4,2036.0,4.07451013]
[1773149780826,4.11500031,2037.0,2035.7,4.08031614]
[1773149781522,4.11500031,2036.8,2035.7,0.00580601]
[1773149781726,4.11500031,2036.4,2035.1,4.07451013]
[1773149782125,4.11500031,2036.4,2035.2,4.07451013]
[1773149782717,4.11843874,2036.4,2035.2,4.08071317]
[1773149782922,4.11500031,2036.2,2035.2,0.00620304]
[1773149783427,4.11500031,2036.2,2035.2,4.08071317]
[1773149784331,4.11500031,2036.0,2034.3,4.07451013]
[1773149784826,4.11500031,2035.8,2034.4,4.07451013]
[1773149785124,4.11500031,2035.2,2033.7,4.07451013]
[1773149785324,4.11500031,2034.8,2033.7,0.00385426]
[1773149785525,0.00460685,2034.8,2033.7,4.07836439]
[1773149785729,4.11960716,2034.8,2033.7,4.07836439]
[1773149787032,4.11960716,2034.8,2033.7,0.00385426]
[1773149787735,4.11500031,2034.4,2032.7,4.07451013]
[1773149787938,4.11500031,2034.4,2033.1,4.07451013]
[1773149788136,4.11500031,2034.4,2033.3,4.07451013]
[1773149788342,4.11500031,2034.7,2033.3,4.07451013]
[1773149788542,4.11500031,2034.7,2033.5,4.07451013]
[1773149788741,4.11500031,2034.7,2033.5,4.08034721]
[1773149789439,0.00460685,2034.8,2033.6,10.36843013]
[1773149789634,0.00460685,2034.8,2033.9,4.07451013]
[1773149789943,0.00460685,2034.8,2034.1,4.07451013]
[1773149790135,0.00460685,2034.8,2033.6,4.07451013]
[1773149790136,4.11960716,2034.8,2033.6,4.07451013]
[1773149791143,4.11960716,2034.8,2033.8,4.07451013]
[1773149791640,0.00460685,2034.8,2033.9,4.07451013]
[1773149792141,4.11960716,2034.8,2033.6,4.07451013]
[1773149792439,4.11500031,2034.6,2033.5,0.00583708]
[1773149792640,4.11500031,2034.6,2033.5,4.08034721]
[1773149793035,4.11500031,2034.6,2033.5,0.00583708]
[1773149793240,4.11500031,2034.4,2033.5,0.00583708]
[1773149796838,4.11500031,2034.4,2033.5,4.07889693]
[1773149797040,4.04888445,2034.7,2033.5,4.07889693]
[1773149797449,0.00460685,2034.8,2033.9,4.07305985]
[1773149797744,4.04888445,2035.3,2034.2,4.07305985]
[1773149798146,4.04888445,2035.8,2034.4,4.07305985]
[1773149798348,4.04888445,2035.8,2034.6,4.07305985]
[1773149798550,4.04888445,2035.8,2033.9,7.2]
[1773149798551,4.04888445,2035.5,2034.3,4.07305985]
[1773149798847,4.05337286,2035.5,2034.4,4.07305985]
[1773149799446,4.05337286,2035.5,2034.1,4.31883985]
[1773149799651,4.05337286,2035.5,2034.2,4.07305985]
[1773149799953,0.00448841,2035.5,2034.6,4.07305985]
[1773149800149,0.00448841,2035.5,2034.5,0.24574]
[1773149800150,4.04888445,2036.1,2035.0,4.07305985]
[1773149800446,4.04888445,2036.5,2035.6,4.07305985]
[1773149800645,4.04888445,2036.5,2035.3,4.07305985]
[1773149801048,4.04888445,2036.5,2035.4,4.07305985]
[1773149801351,0.00456232,2036.5,2035.4,4.07305985]
[1773149801850,0.00456232,2036.5,2035.6,4.07305985]
[1773149802146,0.00456232,2036.5,2035.7,4.07305985]
[1773149802345,4.04888445,2036.9,2035.7,4.07305985]
[1773149803140,4.04888445,2036.7,2035.7,4.07305985]
[1773149803345,4.04888445,2036.5,2035.4,4.07305985]
[1773149803651,4.04888445,2036.3,2035.3,0.00564026]
[1773149804148,4.04888445,2036.1,2035.3,0.00564026]
[1773149804449,4.04888445,2036.1,2034.8,4.07305985]
[1773149804755,4.04888445,2035.7,2034.2,4.07305985]
[1773149805050,4.04888445,2035.5,2034.2,4.07305985]
[1773149805251,4.04888445,2035.3,2034.2,0.00592904]
[1773149805852,4.04888445,2035.3,2034.2,4.07898889]
[1773149807749,3.92583118,2035.7,2034.2,4.07898889]
[1773149807955,3.92583118,2035.5,2034.2,4.07898889]
[1773149808149,3.92583118,2035.5,2034.3,4.10413628]
[1773149808351,3.92583118,2035.5,2034.4,4.34989628]
[1773149808551,3.92583118,2036.1,2034.7,4.10413628]
[1773149809154,3.92583118,2035.9,2034.7,4.10413628]
[1773149809347,3.92583118,2035.7,2034.4,4.10413628]
[1773149809555,3.92583118,2035.7,2034.5,4.10413628]
[1773149810149,3.92583118,2035.7,2034.5,4.34986628]
[1773149810456,3.92583118,2036.0,2034.6,4.10413628]
[1773149810651,3.92583118,2036.0,2034.5,6.0454]
[1773149810652,3.92583118,2036.0,2034.8,4.10413628]
[1773149811257,3.92583118,2036.0,2035.0,4.10413628]
[1773149811561,3.92583118,2036.0,2034.8,4.10413628]
[1773149811857,3.92583118,2036.0,2034.9,4.10413628]
[1773149812758,3.92583118,2036.3,2035.1,4.10413628]
[1773149813454,3.92583118,2036.3,2035.2,4.10413628]
[1773149814053,3.92583118,2036.1,2035.2,4.10413628]
[1773149815160,3.92583118,2036.6,2035.2,4.10413628]
[1773149815358,3.92583118,2036.4,2035.2,4.10413628]
[1773149815860,3.92583118,2036.4,2035.2,4.34978628]
[1773149816055,3.92583118,2036.4,2035.3,7.157]
[1773149816252,3.92583118,2036.4,2035.3,11.26113628]
[1773149816451,3.92583118,2036.4,2035.4,4.10413628]
[1773149818462,3.92583118,2036.4,2035.1,4.10413628]
[1773149818663,3.92583118,2036.4,2035.1,11.25313628]
[1773149819063,3.92583118,2036.4,2035.2,4.10413628]
[1773149819668,3.92583118,2036.2,2034.9,4.10413628]
[1773149820370,3.92583118,2036.2,2035.2,0.24566]
[1773149820568,3.92583118,2036.2,2035.0,4.10413628]
[1773149820872,3.92583118,2036.0,2035.0,4.10413628]
[1773149822873,3.92583118,2036.0,2034.8,10.03635799]
[1773149822874,3.92583118,2036.6,2035.5,4.34975628]
[1773149823074,3.92583118,2036.6,2035.4,4.10413628]
[1773149823264,3.92583118,2036.6,2035.4,11.23713628]
[1773149823670,3.92583118,2036.6,2035.7,4.19798168]
[1773149823865,0.00596626,2036.7,2035.9,4.19798168]
[1773149824070,4.01846628,2036.7,2035.9,4.19798168]
[1773149824270,4.01846628,2036.7,2035.7,0.00514069]
[1773149824972,2.89635799,2036.1,2034.5,4.19798168]
[1773149825180,4.25806002,2036.0,2034.7,4.19798168]
[1773149825478,4.01250002,2036.0,2034.7,4.44369168]
[1773149825979,4.01250002,2036.0,2034.7,4.44811789]
[1773149826180,4.01250002,2036.0,2034.8,7.121]
[1773149826374,4.01250002,2036.0,2034.8,11.31898168]
[1773149826881,4.01250002,2036.0,2034.9,4.19798168]
[1773149827381,4.01250002,2036.0,2035.1,4.19798168]
[1773149827579,4.01250002,2036.0,2035.2,4.44364168]
[1773149827779,4.01250002,2036.6,2035.2,4.44364168]
[1773149827977,4.00370596,2036.8,2035.2,4.44364168]
[1773149827978,4.01250002,2036.4,2035.2,4.19798168]
[1773149828179,4.01250002,2036.4,2035.4,4.19798168]
[1773149828378,4.01250002,2036.4,2035.5,4.44360168]
[1773149828579,4.01250002,2036.4,2035.4,7.111]
[1773149828878,4.01250002,2036.4,2035.2,4.19798168]
[1773149830083,4.01250002,2036.4,2035.4,4.19798168]
[1773149830480,4.01250002,2036.4,2035.6,4.19798168]
[1773149830680,4.01846628,2036.7,2035.6,4.19798168]
[1773149831180,4.01846628,2036.7,2035.7,4.19798168]
[1773149831381,4.01846628,2036.7,2035.9,4.19798168]
[1773149831787,4.01250002,2037.0,2036.0,4.44354168]
[1773149831984,4.01250002,2037.6,2036.2,4.44352168]
[1773149832583,4.01250002,2037.3,2035.8,4.19798168]
[1773149832784,4.01749915,2037.3,2035.9,11.29298168]
[1773149832984,4.01749915,2037.3,2036.0,4.19798168]
[1773149833483,2.89635799,2037.2,2036.0,4.19798168]
[1773149833687,4.01250002,2037.1,2036.0,4.19798168]
[1773149834583,4.01250002,2036.9,2035.8,0.00531163]
[1773149834790,4.01250002,2036.9,2035.8,4.20329331]
[1773149835185,4.01250002,2036.9,2035.8,0.00531163]
[1773149836390,4.01250002,2036.1,2034.9,4.19798168]
[1773149836589,4.01250002,2036.1,2035.0,4.19798168]
[1773149836892,4.01250002,2036.1,2034.6,0.24573]
[1773149836893,4.01250002,2036.1,2034.7,11.27798168]
[1773149837089,4.01250002,2036.1,2034.8,4.19798168]
[1773149837494,4.01250002,2035.8,2034.8,4.20293321]
[1773149837691,4.01787885,2035.8,2034.8,4.20293321]
[1773149838398,4.01787885,2035.8,2034.8,0.00495153]
[1773149839098,4.01250002,2035.6,2034.0,11.51578168]
[1773149839292,4.01250002,2035.4,2034.0,4.44378168]
[1773149839493,4.01250002,2035.0,2033.7,4.19798168]
[1773149839697,4.01250002,2034.8,2033.4,4.19798168]
[1773149839989,4.01250002,2034.8,2033.4,0.00464496]
[1773149840196,4.01250002,2034.6,2033.4,0.00464496]
[1773149840597,4.01250002,2034.6,2033.4,4.20262664]
[1773149840899,4.01250002,2034.6,2033.4,0.00464496]
[1773149841196,4.01250002,2034.6,2033.4,4.20262664]
[1773149841590,4.01250002,2034.6,2033.6,4.19798168]
[1773149841897,4.01250002,2035.3,2033.6,4.19798168]
[1773149842093,4.01250002,2035.1,2033.6,4.19798168]
[1773149842296,10.30210002,2035.0,2033.4,0.00464496]
[1773149842493,4.01250002,2034.5,2033.4,0.00464496]
[1773149842695,4.01250002,2034.5,2033.4,4.20262664]
[1773149844190,4.01250002,2034.8,2033.4,4.44849664]
[1773149844396,4.01250002,2034.8,2033.7,4.19798168]
[1773149844596,6.405,2035.3,2033.6,0.24585]
[1773149844597,4.01250002,2035.1,2033.9,4.19798168]
[1773149844796,4.01250002,2035.1,2034.0,4.19798168]
[1773149846998,4.01250002,2035.1,2034.2,4.19798168]
[1773149847206,4.01250002,2035.7,2034.2,4.44376168]
[1773149847494,0.00537883,2035.8,2034.0,4.19798168]
[1773149847495,4.01250002,2035.5,2034.0,4.19798168]
[1773149847699,2.90091305,2035.8,2034.0,4.19798168]
[1773149847700,4.01250002,2035.3,2034.0,4.19798168]
[1773149847900,4.01250002,2035.1,2034.0,4.19798168]
[1773149848095,4.01250002,2035.1,2033.9,4.19798168]
[1773149848492,4.01250002,2035.7,2034.1,4.19798168]
[1773149849304,4.01250002,2035.5,2034.1,4.19798168]
[1773149849804,4.01787885,2035.8,2034.5,4.19798168]
[1773149850101,4.01787885,2035.8,2034.8,4.44369168]
[1773149850298,4.01787885,2035.8,2034.8,4.19798168]
[1773149850703,0.00537883,2035.8,2035.0,4.19798168]
[1773149851001,0.00537883,2035.8,2035.0,4.2027288]
[1773149851597,0.00537883,2035.8,2035.2,4.19798168]
[1773149851802,4.01250002,2036.3,2035.2,4.19798168]
[1773149852001,4.01250002,2036.1,2035.0,0.00474712]
[1773149852399,4.01250002,2035.7,2034.3,11.24198168]
[1773149852602,0.24559,2035.8,2034.3,4.19798168]
[1773149852603,4.01250002,2035.5,2034.3,4.19798168]
[1773149852803,4.01250002,2035.5,2034.2,4.19798168]
[1773149853400,4.01824481,2035.5,2034.2,4.20409774]
[1773149853605,3.86194964,2035.3,2034.2,0.00611606]
[1773149853802,6.04823479,2035.5,2034.2,0.00611606]
[1773149853803,3.86194964,2035.1,2034.2,0.00611606]
[1773149854695,3.86194964,2035.1,2034.2,3.93251741]
[1773149854902,3.86194964,2035.4,2034.2,3.93251741]
[1773149855406,3.86194964,2035.2,2034.2,0.00611606]
[1773149857008,3.86194964,2035.2,2034.2,3.93251741]
[1773149857503,3.86194964,2035.2,2034.2,0.00611606]
[1773149859204,3.86194964,2035.0,2034.2,0.00611606]
[1773149859403,3.86194964,2034.8,2033.6,3.92640135]
[1773149860102,3.86194964,2034.8,2033.7,7.036]
[1773149860299,3.86194964,2034.8,2033.6,10.96240135]
[1773149860505,3.86194964,2034.8,2033.6,10.96840709]
[1773149860706,3.86194964,2034.8,2033.7,3.92640135]
[1773149861105,3.86194964,2034.8,2033.6,3.93240709]
[1773149861403,3.86194964,2034.6,2033.6,0.00600574]
[1773149861605,3.86194964,2034.4,2033.6,0.00600574]
[1773149861800,6.04494,2034.7,2033.6,0.00600574]
[1773149861801,3.86194964,2034.2,2033.6,0.00600574]
[1773149862001,6.04494,2034.7,2032.4,6.29759]
[1773149862002,3.86194964,2034.0,2032.8,3.92640135]
[1773149863008,3.86715667,2034.0,2032.9,10.96340135]
[1773149863408,3.86715667,2034.0,2032.9,3.92640135]
[1773149863610,3.86715667,2034.0,2032.9,10.96340135]
[1773149864405,3.86194964,2033.8,2032.8,0.00580159]
[1773149864604,3.86194964,2033.6,2032.2,3.92640135]
[1773149865109,3.86194964,2033.6,2032.4,3.92640135]
[1773149865614,3.86194964,2033.6,2032.4,3.93239979]
[1773149866310,3.64159276,2033.9,2032.6,3.92640135]
[1773149866506,3.88742276,2033.9,2032.6,3.92640135]
[1773149866713,3.88742276,2033.9,2032.6,3.95917334]
[1773149867305,3.88742276,2033.9,2032.4,3.96517178]
[1773149867808,3.88742276,2033.9,2032.4,4.21116178]
[1773149868109,3.88742276,2033.9,2032.6,3.95917334]
[1773149868307,3.88742276,2033.9,2032.8,3.95917334]
[1773149868308,3.64159276,2033.9,2032.8,3.95917334]
[1773149868510,3.64159276,2033.9,2032.5,3.95917334]
[1773149868812,3.64159276,2033.1,2031.7,3.95917334]
[1773149869004,3.64159276,2033.1,2031.9,3.95917334]
[1773149869413,3.64159276,2032.9,2031.7,7.034]
[1773149869609,3.64159276,2032.9,2031.6,3.95917334]
[1773149869610,3.64159276,2032.9,2031.6,10.99317334]
[1773149869805,3.64159276,2032.5,2031.6,0.00382361]
[1773149870014,3.64778155,2032.5,2031.6,0.00382361]
[1773149870211,3.64778155,2032.5,2031.1,3.95917334]
[1773149870609,3.64778155,2032.5,2031.3,3.95917334]
[1773149870809,3.64778155,2032.5,2031.5,3.95917334]
[1773149871109,3.64778155,2032.5,2031.5,3.96492616]
[1773149871507,3.64778155,2032.5,2031.5,0.00575282]
[1773149871710,3.64159276,2032.3,2031.5,0.00575282]
[1773149871916,3.64159276,2032.3,2030.9,3.95917334]
[1773149872214,3.64159276,2032.3,2031.3,3.95917334]
[1773149872404,3.64778155,2032.5,2031.3,3.95917334]
[1773149872609,3.64778155,2032.5,2031.5,3.95917334]
[1773149872912,0.00618879,2032.5,2031.6,3.95917334]
[1773149873312,0.00618879,2032.5,2031.8,3.95917334]
[1773149873612,3.64159276,2032.9,2032.0,3.95917334]
[1773149873814,3.64159276,2033.8,2032.0,3.95917334]
[1773149874108,3.64159276,2033.8,2032.2,3.95917334]
[1773149874308,3.64159276,2033.8,2032.3,3.95917334]
[1773149874509,3.64737703,2033.8,2032.3,3.95917334]
[1773149874711,3.64737703,2033.8,2032.5,3.95917334]
[1773149875008,3.64159276,2033.6,2032.3,3.95917334]
[1773149875218,3.64159276,2033.6,2032.6,3.95917334]
[1773149875412,3.64159276,2033.6,2032.5,3.95917334]
[1773149875713,3.64737703,2033.8,2032.7,3.95917334]
[1773149875912,9.94071703,2033.8,2032.1,3.95917334]
[1773149876215,3.64159276,2033.3,2032.1,3.95917334]
[1773149876911,3.64159276,2033.3,2032.3,3.95917334]
[1773149877415,3.64159276,2033.3,2032.0,3.95917334]
[1773149877720,3.64159276,2033.3,2032.4,4.20517334]
[1773149878317,3.64159276,2033.3,2032.4,3.95917334]
[1773149878519,3.64159276,2033.3,2032.1,3.95917334]
[1773149879617,3.64159276,2033.3,2031.6,3.95917334]
[1773149879808,3.64159276,2033.1,2031.8,3.95917334]
[1773149880016,3.64159276,2032.9,2031.8,3.95917334]
[1773149880620,3.64159276,2032.7,2031.5,3.96425031]
[1773149880914,3.64159276,2032.5,2031.5,3.96425031]
[1773149881113,3.64159276,2032.3,2031.5,0.00507697]
[1773149881319,3.64797482,2032.3,2031.5,0.00507697]
[1773149881515,3.64159276,2032.1,2030.0,3.95917334]
[1773149881721,6.05853206,2032.3,2030.4,4.80094442]
[1773149881722,3.64159276,2031.9,2030.4,4.80094442]
[1773149882317,3.64159276,2031.9,2030.7,3.95917334]
[1773149882516,3.64159276,2032.2,2030.9,3.95917334]
[1773149882710,3.64159276,2032.2,2031.2,0.24614]
[1773149882915,3.64159276,2032.2,2031.3,3.95917334]
[1773149883417,0.00638206,2032.3,2031.3,3.95917334]
[1773149883618,0.00638206,2032.3,2031.5,3.95917334]
[1773149883814,3.67757464,2032.3,2031.3,7.021]
[1773149884014,3.67757464,2032.3,2031.3,10.57641221]
[1773149884220,0.00638206,2032.3,2031.4,3.55541221]
[1773149884419,0.00638206,2032.3,2031.6,3.55541221]
[1773149885119,3.67757464,2032.3,2031.3,10.57741221]
[1773149885320,3.67119258,2033.3,2031.8,3.55541221]
[1773149885521,3.67119258,2033.3,2031.9,3.80147221]
[1773149885819,3.67119258,2033.3,2032.1,3.55541221]
[1773149886021,3.67119258,2033.9,2032.9,3.55541221]